[Event "*** SCC Grand Prix: Titled Tuesday Blitz"]
[Site "Chess.com"]
[Date "2020.08.25"]
[Round "9"]
[White "Beca95"]
[Black "Iskusnyh"]
[Result "1-0"]
[WhiteElo "2872"]
[BlackElo "2604"]
[TimeControl "180+1"]
[EndTime "11:46:54 PDT"]
[Termination "Beca95 won on time"]

1. d4 {[%clk 0:03:00.9]} 1... d5 {[%clk 0:02:59.1]} 2. c4 {[%clk 0:03:00.3]}
2... c6 {[%clk 0:02:58.6]} 3. Nc3 {[%clk 0:03:00]} 3... Nf6 {[%clk 0:02:58.3]}
4. Nf3 {[%clk 0:03:00.4]} 4... a6 {[%clk 0:02:57]} 5. Qb3 {[%clk 0:02:58.2]}
5... e6 {[%clk 0:01:57.3]} 6. Bg5 {[%clk 0:02:53.8]} 6... Nbd7 {[%clk
0:01:56.4]} 7. e3 {[%clk 0:02:53.6]} 7... Be7 {[%clk 0:01:55.3]} 8. cxd5 {[%clk
0:02:48.3]} 8... exd5 {[%clk 0:01:50.7]} 9. Bd3 {[%clk 0:02:46.7]} 9... O-O
{[%clk 0:01:48.9]} 10. Qc2 {[%clk 0:02:44]} 10... Re8 {[%clk 0:01:46]} 11. h3
{[%clk 0:02:38.5]} 11... Nf8 {[%clk 0:01:45.4]} 12. Ne5 {[%clk 0:02:32.9]} 12...
N6d7 {[%clk 0:01:43.4]} 13. Bxe7 {[%clk 0:02:26.1]} 13... Qxe7 {[%clk
0:01:42.6]} 14. Nf3 {[%clk 0:02:26.6]} 14... Nf6 {[%clk 0:01:38.5]} 15. O-O-O
{[%clk 0:02:24.6]} 15... Bd7 {[%clk 0:01:21.9]} 16. g4 {[%clk 0:02:23.7]} 16...
Rac8 {[%clk 0:01:17.4]} 17. Kb1 {[%clk 0:02:22.7]} 17... c5 {[%clk 0:01:16.8]}
18. dxc5 {[%clk 0:02:22.9]} 18... Rxc5 {[%clk 0:01:10.7]} 19. Nd4 {[%clk
0:02:22.8]} 19... Rec8 {[%clk 0:01:01.1]} 20. Qb3 {[%clk 0:02:20.9]} 20... b5
{[%clk 0:00:58.9]} 21. g5 {[%clk 0:02:17.4]} 21... Ne4 {[%clk 0:00:55.1]} 22.
Bxe4 {[%clk 0:02:11]} 22... dxe4 {[%clk 0:00:54.1]} 23. h4 {[%clk 0:02:11.2]}
23... Qe5 {[%clk 0:00:34]} 24. h5 {[%clk 0:01:57.5]} 24... Qxg5 {[%clk
0:00:25.3]} 25. Nxe4 {[%clk 0:01:54.5]} 25... Bf5 {[%clk 0:00:21.4]} 26. Nxf5
{[%clk 0:01:54.3]} 26... Qxf5 {[%clk 0:00:21.2]} 27. f3 {[%clk 0:01:54.8]} 27...
Rc4 {[%clk 0:00:19.8]} 28. Rhf1 {[%clk 0:01:44.4]} 28... Ne6 {[%clk 0:00:19.3]}
29. Qd3 {[%clk 0:01:44.4]} 29... h6 {[%clk 0:00:17.9]} 30. Rg1 {[%clk
0:01:41.5]} 30... Ng5 {[%clk 0:00:17.2]} 31. b3 {[%clk 0:01:23.8]} 31... R4c7
{[%clk 0:00:08.6]} 32. Qd4 {[%clk 0:00:57.3]} 32... Qxf3 {[%clk 0:00:07.4]} 33.
Nd6 {[%clk 0:00:54.2]} 33... Rd8 {[%clk 0:00:04.6]} 34. e4 {[%clk 0:00:54]}
34... Rcd7 {[%clk 0:00:01.5]} 35. e5 {[%clk 0:00:54.2]} 35... Ne6 {[%clk
0:00:01.3]} 36. Qd2 {[%clk 0:00:51.3]} 36... Rc7 {[%clk 0:00:01]} 37. Rdf1
{[%clk 0:00:47.2]} 1-0

[Event "*** SCC Grand Prix: Titled Tuesday Blitz"]
[Site "Chess.com"]
[Date "2020.08.25"]
[Round "9"]
[White "barbara25"]
[Black "Supernotar"]
[Result "0-1"]
[WhiteElo "2318"]
[BlackElo "2726"]
[TimeControl "180+1"]
[EndTime "11:46:55 PDT"]
[Termination "Supernotar won by resignation"]

1. f4 {[%clk 0:03:00.9]} 1... g6 {[%clk 0:02:59.4]} 2. e4 {[%clk 0:03:00.1]}
2... Bg7 {[%clk 0:02:59.4]} 3. Nc3 {[%clk 0:02:57.4]} 3... c5 {[%clk 0:02:59]}
4. Nf3 {[%clk 0:02:57.1]} 4... Nc6 {[%clk 0:02:58.1]} 5. Be2 {[%clk 0:02:56.8]}
5... e6 {[%clk 0:02:57.6]} 6. O-O {[%clk 0:02:56.6]} 6... Nge7 {[%clk
0:02:57.1]} 7. d3 {[%clk 0:02:56.5]} 7... d6 {[%clk 0:02:55.5]} 8. Kh1 {[%clk
0:02:56.2]} 8... O-O {[%clk 0:02:55.2]} 9. Rb1 {[%clk 0:02:54.3]} 9... Nd4
{[%clk 0:02:53.6]} 10. Nxd4 {[%clk 0:02:52.4]} 10... cxd4 {[%clk 0:02:52.3]} 11.
Nb5 {[%clk 0:02:52.2]} 11... a6 {[%clk 0:02:49.5]} 12. Na3 {[%clk 0:02:51.7]}
12... b5 {[%clk 0:02:49.5]} 13. c3 {[%clk 0:02:50]} 13... dxc3 {[%clk
0:02:40.9]} 14. bxc3 {[%clk 0:02:49.8]} 14... Bxc3 {[%clk 0:02:35.9]} 15. d4
{[%clk 0:02:49.9]} 15... Nc6 {[%clk 0:02:23.2]} 16. Be3 {[%clk 0:02:47.4]} 16...
d5 {[%clk 0:01:57.3]} 17. e5 {[%clk 0:02:45.2]} 17... Ne7 {[%clk 0:01:46.2]} 18.
Bd3 {[%clk 0:02:36.1]} 18... Bd7 {[%clk 0:01:40.5]} 19. g4 {[%clk 0:02:32.9]}
19... Rc8 {[%clk 0:01:35.5]} 20. Qe2 {[%clk 0:02:12.4]} 20... f5 {[%clk
0:01:29.4]} 21. exf6 {[%clk 0:02:10.7]} 21... Rxf6 {[%clk 0:01:29.1]} 22. f5
{[%clk 0:02:10.9]} 22... exf5 {[%clk 0:01:24.3]} 23. Bg5 {[%clk 0:02:10.7]}
23... Re6 {[%clk 0:01:20.6]} 24. Qf3 {[%clk 0:02:10.5]} 24... Re4 {[%clk
0:01:18.4]} 25. Bxe4 {[%clk 0:01:57.6]} 25... dxe4 {[%clk 0:01:16.5]} 26. Qf2
{[%clk 0:01:56]} 26... e3 {[%clk 0:01:08.4]} 27. Bxe3 {[%clk 0:01:52.3]} 27...
Bc6+ {[%clk 0:01:05]} 28. Kg1 {[%clk 0:01:52]} 28... Qd5 {[%clk 0:01:05]} 29.
Qg3 {[%clk 0:01:46.4]} 29... Rf8 {[%clk 0:00:53.4]} 30. Rbc1 {[%clk 0:01:26.2]}
30... Qh1+ {[%clk 0:00:44.1]} 31. Kf2 {[%clk 0:01:25.7]} 31... fxg4+ {[%clk
0:00:40.7]} 32. Ke2 {[%clk 0:01:23]} 32... Rxf1 {[%clk 0:00:31.3]} 33. Rxf1
{[%clk 0:01:22]} 33... Qg2+ {[%clk 0:00:27.9]} 34. Qxg2 {[%clk 0:01:21.6]} 34...
Bxg2 {[%clk 0:00:28.8]} 35. Rc1 {[%clk 0:01:17.6]} 35... Bf3+ {[%clk 0:00:24.9]}
36. Kd3 {[%clk 0:01:17.1]} 36... Bb2 {[%clk 0:00:23.4]} 37. Rc7 {[%clk
0:00:52.8]} 37... Bxa3 {[%clk 0:00:23.3]} 38. Ra7 {[%clk 0:00:53]} 38... Nc6
{[%clk 0:00:17.4]} 39. Rc7 {[%clk 0:00:45.6]} 39... Nb4+ {[%clk 0:00:15.6]} 40.
Kc3 {[%clk 0:00:45.5]} 40... Nd5+ {[%clk 0:00:15.8]} 0-1

[Event "*** SCC Grand Prix: Titled Tuesday Blitz"]
[Site "Chess.com"]
[Date "2020.08.25"]
[Round "9"]
[White "giantslayer83"]
[Black "stolencandy13"]
[Result "1-0"]
[WhiteElo "2706"]
[BlackElo "2512"]
[TimeControl "180+1"]
[EndTime "11:46:56 PDT"]
[Termination "giantslayer83 won by resignation"]

1. c4 {[%clk 0:03:00.9]} 1... c6 {[%clk 0:02:57.7]} 2. Nf3 {[%clk 0:02:59.1]}
2... Nf6 {[%clk 0:02:57.4]} 3. Nc3 {[%clk 0:02:57.8]} 3... d5 {[%clk 0:02:56.3]}
4. e3 {[%clk 0:02:58.2]} 4... g6 {[%clk 0:02:51.5]} 5. d4 {[%clk 0:02:45.1]}
5... Bg7 {[%clk 0:02:51]} 6. h3 {[%clk 0:02:36.9]} 6... O-O {[%clk 0:02:49.9]}
7. Be2 {[%clk 0:02:34.7]} 7... dxc4 {[%clk 0:02:48.8]} 8. Bxc4 {[%clk
0:02:34.5]} 8... b5 {[%clk 0:02:49.2]} 9. Bb3 {[%clk 0:02:34.8]} 9... Bb7 {[%clk
0:02:48.9]} 10. O-O {[%clk 0:02:34.5]} 10... a6 {[%clk 0:02:49]} 11. e4 {[%clk
0:02:27.8]} 11... c5 {[%clk 0:02:29.8]} 12. e5 {[%clk 0:02:22.3]} 12... Nfd7
{[%clk 0:02:04]} 13. Bf4 {[%clk 0:01:44.3]} 13... cxd4 {[%clk 0:02:00.3]} 14.
Qxd4 {[%clk 0:01:41.8]} 14... Nc6 {[%clk 0:01:56.9]} 15. Qe3 {[%clk 0:01:41.9]}
15... e6 {[%clk 0:01:53.7]} 16. Rfd1 {[%clk 0:01:40.2]} 16... Qc7 {[%clk
0:01:41.4]} 17. Rac1 {[%clk 0:01:37.8]} 17... Rfd8 {[%clk 0:01:37]} 18. Bg5
{[%clk 0:01:25.6]} 18... Ncxe5 {[%clk 0:00:50.9]} 19. Nxe5 {[%clk 0:01:18.2]}
19... Nxe5 {[%clk 0:00:46]} 20. Bxd8 {[%clk 0:01:16.2]} 20... Rxd8 {[%clk
0:00:46.6]} 21. Nd5 {[%clk 0:00:47.7]} 21... Qa5 {[%clk 0:00:33]} 22. Ne7+
{[%clk 0:00:43.8]} 22... Kf8 {[%clk 0:00:25.9]} 23. Qc5 {[%clk 0:00:43.6]} 23...
Ke8 {[%clk 0:00:11.4]} 24. Rxd8+ {[%clk 0:00:35]} 24... Qxd8 {[%clk 0:00:10.8]}
25. Nc8 {[%clk 0:00:35.5]} 25... Nd3 {[%clk 0:00:06.9]} 26. Nd6+ {[%clk
0:00:34.9]} 26... Kd7 {[%clk 0:00:03.9]} 27. Nxb7 {[%clk 0:00:34.6]} 27... Nxc5
{[%clk 0:00:03.4]} 28. Rd1+ {[%clk 0:00:25.4]} 28... Kc7 {[%clk 0:00:02.5]} 29.
Nxd8 {[%clk 0:00:25.2]} 29... Nxb3 {[%clk 0:00:02.7]} 30. axb3 {[%clk
0:00:26.1]} 30... Bf6 {[%clk 0:00:03.1]} 31. Nxf7 {[%clk 0:00:26.3]} 1-0

[Event "*** SCC Grand Prix: Titled Tuesday Blitz"]
[Site "Chess.com"]
[Date "2020.08.25"]
[Round "9"]
[White "JesseKraai"]
[Black "novocane"]
[Result "1-0"]
[WhiteElo "2531"]
[BlackElo "2263"]
[TimeControl "180+1"]
[EndTime "11:46:56 PDT"]
[Termination "JesseKraai won by resignation"]

1. d4 {[%clk 0:03:00.3]} 1... Nf6 {[%clk 0:02:55.3]} 2. c4 {[%clk 0:03:00.3]}
2... e6 {[%clk 0:02:53.2]} 3. Nc3 {[%clk 0:03:00.1]} 3... Bb4 {[%clk 0:02:50.3]}
4. e3 {[%clk 0:03:00.4]} 4... O-O {[%clk 0:02:48.3]} 5. Nf3 {[%clk 0:03:00.5]}
5... c5 {[%clk 0:02:44]} 6. Bd3 {[%clk 0:02:59.2]} 6... d5 {[%clk 0:02:40.5]} 7.
O-O {[%clk 0:02:59.1]} 7... cxd4 {[%clk 0:02:38.9]} 8. exd4 {[%clk 0:02:58.8]}
8... dxc4 {[%clk 0:02:39]} 9. Bxc4 {[%clk 0:02:58.6]} 9... b6 {[%clk 0:02:38.5]}
10. Bg5 {[%clk 0:02:52.9]} 10... Bb7 {[%clk 0:02:27.4]} 11. Rc1 {[%clk
0:02:47.2]} 11... Nbd7 {[%clk 0:02:21.9]} 12. Re1 {[%clk 0:02:45.4]} 12... Rc8
{[%clk 0:02:18.1]} 13. Bd3 {[%clk 0:02:44.4]} 13... h6 {[%clk 0:02:03.4]} 14.
Bh4 {[%clk 0:02:43.2]} 14... Be7 {[%clk 0:01:38.9]} 15. Bb1 {[%clk 0:02:39.6]}
15... Nd5 {[%clk 0:01:20.3]} 16. Qd3 {[%clk 0:02:37.7]} 16... N5f6 {[%clk
0:00:39.1]} 17. Ne5 {[%clk 0:02:14.7]} 17... Nxe5 {[%clk 0:00:26.6]} 18. dxe5
{[%clk 0:02:14.4]} 18... Qxd3 {[%clk 0:00:22.4]} 19. Bxd3 {[%clk 0:02:13.9]}
19... Nd5 {[%clk 0:00:22.4]} 20. Bxe7 {[%clk 0:02:04.8]} 20... Nxe7 {[%clk
0:00:20.3]} 21. Nb5 {[%clk 0:02:04.9]} 21... Rxc1 {[%clk 0:00:16.2]} 22. Rxc1
{[%clk 0:02:04.2]} 22... a6 {[%clk 0:00:15]} 23. Nd6 {[%clk 0:02:02.6]} 23...
Bd5 {[%clk 0:00:15]} 24. Rc7 {[%clk 0:01:51.6]} 24... Ng6 {[%clk 0:00:07.2]} 25.
Bxg6 {[%clk 0:01:39.8]} 25... fxg6 {[%clk 0:00:07]} 26. b3 {[%clk 0:01:36.6]}
26... a5 {[%clk 0:00:04.3]} 27. f3 {[%clk 0:01:34.9]} 27... Rd8 {[%clk
0:00:03.7]} 28. Kf2 {[%clk 0:01:34.3]} 28... Ra8 {[%clk 0:00:02.6]} 29. h4
{[%clk 0:01:24]} 29... g5 {[%clk 0:00:03]} 30. h5 {[%clk 0:01:23.5]} 30... Kf8
{[%clk 0:00:03.2]} 31. Rf7+ {[%clk 0:01:22]} 31... Kg8 {[%clk 0:00:03.7]} 32.
Rc7 {[%clk 0:01:21.9]} 32... a4 {[%clk 0:00:04.4]} 33. bxa4 {[%clk 0:01:21.5]}
33... Rxa4 {[%clk 0:00:03.9]} 34. Rc8+ {[%clk 0:01:21.4]} 34... Kh7 {[%clk
0:00:04.1]} 35. Nf7 {[%clk 0:01:15.6]} 35... Rxa2+ {[%clk 0:00:04.9]} 36. Kg3
{[%clk 0:01:15.2]} 36... g6 {[%clk 0:00:05.4]} 37. Rc7 {[%clk 0:01:10.4]} 37...
gxh5 {[%clk 0:00:05.6]} 38. Nxg5+ {[%clk 0:01:09.8]} 38... Kg6 {[%clk
0:00:06.1]} 39. Nh3 {[%clk 0:01:09.9]} 39... h4+ {[%clk 0:00:06]} 40. Kxh4
{[%clk 0:01:09.9]} 40... Rxg2 {[%clk 0:00:05.9]} 41. Nf4+ {[%clk 0:01:09.9]}
41... Kf5 {[%clk 0:00:05.9]} 42. Nxg2 {[%clk 0:01:10]} 42... Bxf3 {[%clk
0:00:06.6]} 43. Kg3 {[%clk 0:01:03.8]} 43... Bd5 {[%clk 0:00:05.7]} 1-0

[Event "*** SCC Grand Prix: Titled Tuesday Blitz"]
[Site "Chess.com"]
[Date "2020.08.25"]
[Round "9"]
[White "Shield12"]
[Black "Skatchkov_V"]
[Result "0-1"]
[WhiteElo "2834"]
[BlackElo "2706"]
[TimeControl "180+1"]
[EndTime "11:47:01 PDT"]
[Termination "Skatchkov_V won by resignation"]

1. e4 {[%clk 0:03:00.9]} 1... e5 {[%clk 0:02:59.9]} 2. Nf3 {[%clk 0:03:00.8]}
2... Nf6 {[%clk 0:03:00.4]} 3. Nc3 {[%clk 0:03:01.7]} 3... Nc6 {[%clk
0:03:00.4]} 4. Be2 {[%clk 0:03:02.1]} 4... d5 {[%clk 0:03:00.7]} 5. Bb5 {[%clk
0:03:01.7]} 5... Nxe4 {[%clk 0:02:49.6]} 6. Qe2 {[%clk 0:03:01.1]} 6... Nxc3
{[%clk 0:02:49.8]} 7. Qxe5+ {[%clk 0:03:01]} 7... Qe7 {[%clk 0:02:48.4]} 8. dxc3
{[%clk 0:02:59.7]} 8... Bd7 {[%clk 0:02:45.1]} 9. Qxe7+ {[%clk 0:02:58.8]} 9...
Bxe7 {[%clk 0:02:44]} 10. Bf4 {[%clk 0:02:58]} 10... O-O-O {[%clk 0:02:41.7]}
11. O-O-O {[%clk 0:02:58.1]} 11... Bg4 {[%clk 0:02:38.9]} 12. Rde1 {[%clk
0:02:33.7]} 12... Rhe8 {[%clk 0:02:35.4]} 13. Ne5 {[%clk 0:02:30.2]} 13... Bd6
{[%clk 0:02:30.5]} 14. Bxc6 {[%clk 0:02:12.9]} 14... bxc6 {[%clk 0:02:30.6]} 15.
Nd3 {[%clk 0:02:12.5]} 15... Bf5 {[%clk 0:02:28.1]} 16. Bxd6 {[%clk 0:02:12.2]}
16... cxd6 {[%clk 0:01:57.9]} 17. Nf4 {[%clk 0:02:10.8]} 17... g5 {[%clk
0:01:53.1]} 18. Nh5 {[%clk 0:02:07.8]} 18... Bg6 {[%clk 0:01:51.7]} 19. Nf6
{[%clk 0:02:03.1]} 19... Re6 {[%clk 0:01:51.4]} 20. Rxe6 {[%clk 0:01:48.3]}
20... fxe6 {[%clk 0:01:52.3]} 21. h4 {[%clk 0:01:49.2]} 21... gxh4 {[%clk
0:01:48.5]} 22. Rxh4 {[%clk 0:01:50.1]} 22... Rf8 {[%clk 0:01:48.4]} 23. Ng4
{[%clk 0:01:48.5]} 23... h5 {[%clk 0:01:46.6]} 24. Ne3 {[%clk 0:01:42.2]} 24...
Rxf2 {[%clk 0:01:46.5]} 25. g4 {[%clk 0:01:41.7]} 25... Rf4 {[%clk 0:01:41.4]}
26. Kd2 {[%clk 0:01:41.1]} 26... c5 {[%clk 0:01:33.1]} 27. Rh2 {[%clk
0:01:27.8]} 27... hxg4 {[%clk 0:01:30.9]} 28. Rh6 {[%clk 0:01:27.9]} 28... Be4
{[%clk 0:01:17.8]} 29. Rxe6 {[%clk 0:01:26.3]} 29... g3 {[%clk 0:01:13.1]} 30.
Rxd6 {[%clk 0:01:11.1]} 30... Rf2+ {[%clk 0:01:10]} 31. Ke1 {[%clk 0:01:08.6]}
31... Rf3 {[%clk 0:01:04.8]} 32. Ke2 {[%clk 0:01:04.8]} 32... Rf2+ {[%clk
0:00:59.9]} 33. Ke1 {[%clk 0:01:04.6]} 33... Rh2 {[%clk 0:00:57.5]} 34. Rc6+
{[%clk 0:00:57]} 34... Kd7 {[%clk 0:00:51.5]} 35. Rxc5 {[%clk 0:00:57.9]} 35...
Bf3 {[%clk 0:00:49.6]} 36. Nxd5 {[%clk 0:00:20]} 36... g2 {[%clk 0:00:36.1]} 37.
Kf2 {[%clk 0:00:18.8]} 37... Rh1 {[%clk 0:00:36.4]} 0-1

[Event "*** SCC Grand Prix: Titled Tuesday Blitz"]
[Site "Chess.com"]
[Date "2020.08.25"]
[Round "9"]
[White "Dr_crypt"]
[Black "Ginger_GM"]
[Result "0-1"]
[WhiteElo "2398"]
[BlackElo "2572"]
[TimeControl "180+1"]
[EndTime "11:47:02 PDT"]
[Termination "Ginger_GM won by resignation"]

1. d4 {[%clk 0:03:00.7]} 1... d5 {[%clk 0:02:55.8]} 2. c4 {[%clk 0:02:59.9]}
2... e5 {[%clk 0:02:55.1]} 3. e3 {[%clk 0:02:56.5]} 3... Nc6 {[%clk 0:02:47.6]}
4. cxd5 {[%clk 0:02:46.2]} 4... Qxd5 {[%clk 0:02:46.1]} 5. Nc3 {[%clk
0:02:46.8]} 5... Bb4 {[%clk 0:02:45.6]} 6. Bd2 {[%clk 0:02:47.4]} 6... Bxc3
{[%clk 0:02:45.1]} 7. bxc3 {[%clk 0:02:45]} 7... Nf6 {[%clk 0:02:41.9]} 8. Qb3
{[%clk 0:02:44.4]} 8... Qd6 {[%clk 0:02:33.3]} 9. Bb5 {[%clk 0:02:31.6]} 9...
O-O {[%clk 0:02:22.7]} 10. Bxc6 {[%clk 0:02:21.7]} 10... Qxc6 {[%clk 0:02:20.1]}
11. Nf3 {[%clk 0:02:21.9]} 11... Be6 {[%clk 0:01:32.7]} 12. Qb2 {[%clk
0:02:10.7]} 12... exd4 {[%clk 0:01:24.1]} 13. cxd4 {[%clk 0:02:09.1]} 13... Qa6
{[%clk 0:01:22.2]} 14. Rc1 {[%clk 0:02:02.5]} 14... Ne4 {[%clk 0:01:17.6]} 15.
Bb4 {[%clk 0:01:57.4]} 15... Rfc8 {[%clk 0:01:05.7]} 16. Nd2 {[%clk 0:01:54.5]}
16... Nxd2 {[%clk 0:00:44.3]} 17. Qxd2 {[%clk 0:01:53.2]} 17... Qxa2 {[%clk
0:00:41]} 18. Qxa2 {[%clk 0:01:51.6]} 18... Bxa2 {[%clk 0:00:41.9]} 19. Kd2
{[%clk 0:01:43.6]} 19... a5 {[%clk 0:00:41.2]} 20. Bc3 {[%clk 0:01:33.2]} 20...
Bd5 {[%clk 0:00:39.9]} 21. Ra1 {[%clk 0:01:31.4]} 21... a4 {[%clk 0:00:38.6]}
22. f3 {[%clk 0:01:29.5]} 22... f5 {[%clk 0:00:38.3]} 23. Rhe1 {[%clk
0:01:28.7]} 23... Re8 {[%clk 0:00:37.4]} 24. Bb4 {[%clk 0:01:28.8]} 24... Kf7
{[%clk 0:00:36.9]} 25. Ba3 {[%clk 0:01:28.2]} 25... b5 {[%clk 0:00:36]} 26. Rac1
{[%clk 0:01:26.8]} 26... c6 {[%clk 0:00:36.2]} 27. e4 {[%clk 0:01:26.1]} 27...
fxe4 {[%clk 0:00:35.7]} 28. fxe4 {[%clk 0:01:24.8]} 28... Rxe4 {[%clk
0:00:35.8]} 29. Rxe4 {[%clk 0:01:24.2]} 29... Bxe4 {[%clk 0:00:35.9]} 30. Rf1+
{[%clk 0:01:24]} 30... Ke6 {[%clk 0:00:32.4]} 31. Kc3 {[%clk 0:01:22.9]} 31...
Rd8 {[%clk 0:00:30.2]} 32. g3 {[%clk 0:01:22.7]} 32... h5 {[%clk 0:00:29.6]} 33.
Rf4 {[%clk 0:01:20]} 33... Bd5 {[%clk 0:00:28.3]} 34. h4 {[%clk 0:01:15.7]}
34... Re8 {[%clk 0:00:25.2]} 35. Rf8 {[%clk 0:01:14.7]} 35... Rxf8 {[%clk
0:00:22.4]} 36. Bxf8 {[%clk 0:01:15.2]} 36... g6 {[%clk 0:00:22.9]} 37. Kb4
{[%clk 0:01:12.6]} 37... Kf5 {[%clk 0:00:22.8]} 38. Bd6 {[%clk 0:01:08.1]} 38...
Ke4 {[%clk 0:00:22]} 39. Bc5 {[%clk 0:01:04.9]} 39... Kd3 {[%clk 0:00:20.3]} 40.
Ka3 {[%clk 0:01:02]} 40... Kc3 {[%clk 0:00:19.5]} 41. Bb6 {[%clk 0:00:48]} 41...
b4+ {[%clk 0:00:19.3]} 42. Kxa4 {[%clk 0:00:48.2]} 42... b3 {[%clk 0:00:19.8]}
43. Ba5+ {[%clk 0:00:48.6]} 43... Kc2 {[%clk 0:00:19.7]} 0-1

[Event "*** SCC Grand Prix: Titled Tuesday Blitz"]
[Site "Chess.com"]
[Date "2020.08.25"]
[Round "9"]
[White "serena-maria"]
[Black "ChessWarrior3"]
[Result "1-0"]
[WhiteElo "2298"]
[BlackElo "2121"]
[TimeControl "180+1"]
[EndTime "11:47:02 PDT"]
[Termination "serena-maria won by resignation"]

1. Nf3 {[%clk 0:03:00.3]} 1... c5 {[%clk 0:03:00]} 2. g3 {[%clk 0:03:00.4]} 2...
Nc6 {[%clk 0:02:58.6]} 3. d4 {[%clk 0:03:00.6]} 3... cxd4 {[%clk 0:02:56.9]} 4.
Nxd4 {[%clk 0:03:01.5]} 4... g6 {[%clk 0:02:48.2]} 5. Bg2 {[%clk 0:03:01.6]}
5... Bg7 {[%clk 0:02:47.4]} 6. Nb3 {[%clk 0:03:02.2]} 6... Nf6 {[%clk
0:02:44.7]} 7. Nc3 {[%clk 0:03:02.7]} 7... Kf8 {[%clk 0:02:43.5]} 8. O-O {[%clk
0:03:02.2]} 8... e6 {[%clk 0:02:38.4]} 9. Qd6+ {[%clk 0:02:57.7]} 9... Qe7
{[%clk 0:02:36.4]} 10. Bf4 {[%clk 0:02:55.5]} 10... h6 {[%clk 0:02:32.7]} 11.
Rfd1 {[%clk 0:02:54.7]} 11... g5 {[%clk 0:02:31.9]} 12. Qxe7+ {[%clk 0:02:54.8]}
12... Kxe7 {[%clk 0:02:32.2]} 13. Bd6+ {[%clk 0:02:55]} 13... Kd8 {[%clk
0:02:29.9]} 14. Nb5 {[%clk 0:02:53.7]} 14... a6 {[%clk 0:02:28.7]} 15. Bc7+
{[%clk 0:02:48]} 15... Ke7 {[%clk 0:02:26.5]} 16. Bd6+ {[%clk 0:02:45.8]} 16...
Kd8 {[%clk 0:02:26]} 17. Bc7+ {[%clk 0:02:29.4]} 17... Ke7 {[%clk 0:02:25.5]}
18. Nd6 {[%clk 0:02:30]} 18... Ne8 {[%clk 0:02:23.6]} 19. Nxe8 {[%clk
0:02:15.9]} 19... Rxe8 {[%clk 0:02:24.5]} 20. Bd6+ {[%clk 0:02:13.6]} 20... Kf6
{[%clk 0:02:23.6]} 21. a4 {[%clk 0:02:07.2]} 21... Kg6 {[%clk 0:02:20]} 22. c3
{[%clk 0:02:06]} 22... b6 {[%clk 0:02:18.3]} 23. Bc7 {[%clk 0:02:02.3]} 23...
Bb7 {[%clk 0:02:10.7]} 24. Rxd7 {[%clk 0:01:59.5]} 24... b5 {[%clk 0:02:06.8]}
25. Nc5 {[%clk 0:01:54.3]} 25... Nb8 {[%clk 0:01:59.1]} 26. Bxb7 {[%clk
0:01:41.4]} 26... Nxd7 {[%clk 0:01:58.7]} 27. Nxd7 {[%clk 0:01:37.9]} 27... Ra7
{[%clk 0:01:58.1]} 28. Nc5 {[%clk 0:01:16.1]} 28... Re7 {[%clk 0:01:56.9]} 29.
Bb6 {[%clk 0:00:21.7]} 29... Raxb7 {[%clk 0:01:54.9]} 30. Nxb7 {[%clk
0:00:21.8]} 30... Rxb7 {[%clk 0:01:55.4]} 31. a5 {[%clk 0:00:20.2]} 31... Be5
{[%clk 0:01:52.8]} 32. Rd1 {[%clk 0:00:18.4]} 32... Kf6 {[%clk 0:01:49.1]} 33.
Rd8 {[%clk 0:00:15.9]} 33... Ke7 {[%clk 0:01:43.6]} 34. Ra8 {[%clk 0:00:13.3]}
34... b4 {[%clk 0:01:40.1]} 35. cxb4 {[%clk 0:00:12.5]} 35... Bxb2 {[%clk
0:01:39.3]} 36. Rxa6 {[%clk 0:00:12.5]} 36... Kd6 {[%clk 0:01:35.3]} 37. Bd4+
{[%clk 0:00:11.1]} 37... Kd5 {[%clk 0:01:33]} 38. Bxb2 {[%clk 0:00:11.3]} 38...
Rxb4 {[%clk 0:01:33.9]} 39. Bg7 {[%clk 0:00:11.2]} 39... Ke4 {[%clk 0:01:28.4]}
40. Bxh6 {[%clk 0:00:09.8]} 40... Kf5 {[%clk 0:01:28.3]} 41. Bf8 {[%clk
0:00:09.6]} 41... Ra4 {[%clk 0:01:26.7]} 42. Ra8 {[%clk 0:00:08.5]} 42... Kg4
{[%clk 0:01:26.4]} 43. Kg2 {[%clk 0:00:08.5]} 43... Ra2 {[%clk 0:01:25.4]} 44.
h3+ {[%clk 0:00:09]} 44... Kf5 {[%clk 0:01:24.8]} 45. e3 {[%clk 0:00:09.9]}
45... Ke4 {[%clk 0:01:24.2]} 46. Bc5 {[%clk 0:00:10]} 46... f5 {[%clk 0:01:24]}
47. a6 {[%clk 0:00:10.1]} 47... f4 {[%clk 0:01:24.3]} 48. gxf4 {[%clk
0:00:10.6]} 48... gxf4 {[%clk 0:01:25.2]} 49. exf4 {[%clk 0:00:11.3]} 49... Kxf4
{[%clk 0:01:24.7]} 50. Be3+ {[%clk 0:00:11.9]} 50... Ke4 {[%clk 0:01:24.1]} 51.
a7 {[%clk 0:00:12.8]} 51... Kd3 {[%clk 0:01:21.6]} 52. Rd8+ {[%clk 0:00:12.9]}
52... Ke2 {[%clk 0:01:22.5]} 53. a8=Q {[%clk 0:00:13.4]} 53... Rxa8 {[%clk
0:01:21.8]} 54. Rxa8 {[%clk 0:00:14.3]} 54... e5 {[%clk 0:01:22.6]} 55. h4
{[%clk 0:00:15.2]} 55... e4 {[%clk 0:01:23.5]} 56. h5 {[%clk 0:00:16.1]} 56...
Ke1 {[%clk 0:01:23.9]} 57. h6 {[%clk 0:00:17]} 57... Ke2 {[%clk 0:01:24.3]} 58.
h7 {[%clk 0:00:17.9]} 58... Ke1 {[%clk 0:01:24.8]} 59. Ra2 {[%clk 0:00:15.8]}
59... Kd1 {[%clk 0:01:24.7]} 60. h8=R {[%clk 0:00:15.1]} 1-0